[Event "Shanghai COITCT 2019"]
[Site "Shanghai"]
[Date "2019.09.17"]
[Round "8.1"]
[White "Karimov, Alisher"]
[Black "Orozbaev, Eldiar"]
[Result "1-0"]
[ECO "C00"]
[WhiteElo "2251"]
[BlackElo "1908"]
[Annotator "ChessBase"]
[PlyCount "148"]
[EventDate "2019.09.15"]
[EventType "team-tourn"]
[EventCountry "CHN"]
[SourceTitle "playchess.com"]
[Source "ChessBase"]
[SourceQuality "1"]
[TimeControl "1500+10"]

1. e4 {[%emt 0:00:00]} e6 {[%emt 0:00:00]} 2. d3 {[%emt 0:00:04]} d5 {[%emt 0:00:01]} 3. Nd2 {[%emt 0:00:01]} Nc6 {[%emt 0:00:04]} 4. g3 {[%emt 0:00:06]} dxe4 {[%emt 0:00:02]} 5. dxe4 {[%emt 0:00:03]} Bc5 {[%emt 0:00:04]} 6. Bg2 {[%emt 0:00:37]} e5 {[%emt 0:00:04]} 7. Ngf3 {[%emt 0:00:06]} Nf6 {[%emt 0:00:12]} 8. O-O {[%emt 0:00:04]} O-O {[%emt 0:00:06]} 9. Qe2 {[%emt 0:00:30]} Qe7 {[%emt 0:00:03]} 10. c3 {[%emt 0:00:11]} a5 {[%emt 0:00:02]} 11. Nc4 {[%emt 0:00:08]} b5 {[%emt 0:01:57]} 12. Ne3 {[%emt 0:00:23]} Bxe3 {[%emt 0:00:26]} 13. Qxe3 {[%emt 0:00:04]} Ba6 {[%emt 0:00:14]} 14. Nh4 {[%emt 0:00:19]} Qe6 {[%emt 0:02:26]} 15. Nf5 {[%emt 0:00:19]} h6 {[%emt 0:00:36]} 16. Bh3 {[%emt 0:02:07]} Kh7 {[%emt 0:01:46]} 17. Re1 {[%emt 0:02:28]} Ng8 {[%emt 0:02:30]} 18. Bg2 {[%emt 0:01:16]} Rad8 {[%emt 0:00:18]} 19. Qc5 {[%emt 0:00:07]} b4 {[%emt 0:01:23]} 20. Ne3 {[%emt 0:01:17]} Bb7 {[%emt 0:07:03]} 21. Nd5 {[%emt 0:00:28]} Rc8 {[%emt 0:00:43]} 22. Be3 {[%emt 0:00:40]} bxc3 {[%emt 0:00:19]} 23. bxc3 {[%emt 0:00:05]} a4 {[%emt 0:00:25]} 24. Qa3 {[%emt 0:01:18]} Nce7 {[%emt 0:00:44]} 25. Qxa4 {[%emt 0:01:36]} Nxd5 {[%emt 0:00:22]} 26. exd5 {[%emt 0:00:02]} Bxd5 {[%emt 0:00:07]} 27. Bxd5 {[%emt 0:01:25]} Qxd5 {[%emt 0:00:01]} 28. Rad1 {[%emt 0:00:01]} Qf3 {[%emt 0:00:50]} 29. Bc5 {[%emt 0:00:39]} Rfd8 {[%emt 0:01:51]} 30. Rxd8 {[%emt 0:00:38]} Rxd8 {[%emt 0:00:04]} 31. Qe4+ {[%emt 0:00:02]} Qxe4 {[%emt 0:00:01]} 32. Rxe4 {[%emt 0:00:01]} Rd5 {[%emt 0:00:01]} 33. Be3 {[%emt 0:00:17]} Ra5 {[%emt 0:00:02]} 34. a4 {[%emt 0:00:16]} Nf6 {[%emt 0:00:40]} 35. Rc4 {[%emt 0:00:02]} Nd5 {[%emt 0:01:08]} 36. Rc5 {[%emt 0:01:16]} Rxc5 {[%emt 0:00:01]} 37. Bxc5 {[%emt 0:00:01]} Nxc3 {[%emt 0:00:01]} 38. a5 {[%emt 0:00:01]} Nd5 {[%emt 0:00:06]} 39. a6 {[%emt 0:00:08]} c6 {[%emt 0:00:01]} 40. a7 {[%emt 0:00:03]} Nc7 {[%emt 0:00:00]} 41. Bd6 {[%emt 0:00:01]} Na8 {[%emt 0:00:01]} 42. Bxe5 {[%emt 0:00:01]} Kg6 {[%emt 0:00:14]} 43. Kg2 {[%emt 0:00:16]} f6 {[%emt 0:00:08]} 44. Bd6 {[%emt 0:00:01]} Kf7 {[%emt 0:00:11]} 45. Kf3 {[%emt 0:00:02]} g6 {[%emt 0:00:40]} 46. Ke4 {[%emt 0:00:13]} Ke6 {[%emt 0:00:02]} 47. Bb4 {[%emt 0:00:31]} Nc7 {[%emt 0:00:59]} 48. Ba5 {[%emt 0:00:38]} Na8 {[%emt 0:00:20]} 49. Bd2 {[%emt 0:00:16]} h5 {[%emt 0:00:11]} 50. Kd4 {[%emt 0:00:02]} Kd7 {[%emt 0:00:44]} 51. Kc5 {[%emt 0:02:47]} Kc7 {[%emt 0:01:13]} 52. f4 {[%emt 0:00:45]} f5 {[%emt 0:00:38]} 53. Bc3 {[%emt 0:00:54]} Kb7 {[%emt 0:00:02]} 54. Ba5 {[%emt 0:00:01]} Ka6 {[%emt 0:00:36]} 55. Bd8 {[%emt 0:00:09]} Kb7 {[%emt 0:00:06]} 56. Kd6 {[%emt 0:00:59]} Kc8 {[%emt 0:00:11]} 57. Ba5 {[%emt 0:01:54]} Kb7 {[%emt 0:00:01]} 58. h3 {[%emt 0:00:53]} Ka6 {[%emt 0:00:04]} 59. Be1 {[%emt 0:00:03]} Kb7 {[%emt 0:00:17]} 60. Bf2 {[%emt 0:00:02]} Nc7 {[%emt 0:00:12]} 61. Ke7 {[%emt 0:00:18]} h4 {[%emt 0:00:17]} 62. Kf6 {[%emt 0:00:52]} hxg3 {[%emt 0:00:19]} 63. Bxg3 {[%emt 0:00:01]} c5 {[%emt 0:00:17]} 64. Kxg6 {[%emt 0:00:18]} c4 {[%emt 0:00:35]} 65. Be1 {[%emt 0:00:02]} Nd5 {[%emt 0:00:10]} 66. Kxf5 {[%emt 0:00:06]} Ne3+ {[%emt 0:00:08]} 67. Ke4 {[%emt 0:00:10]} Ng2 {[%emt 0:00:04]} 68. Bc3 {[%emt 0:00:21]} Kxa7 {[%emt 0:00:03]} 69. Kf3 {[%emt 0:00:22]} Nh4+ {[%emt 0:00:03]} 70. Kg4 {[%emt 0:00:02]} Ng2 {[%emt 0:00:01]} 71. Kg3 {[%emt 0:00:17]} Nxf4 {[%emt 0:00:20]} 72. Kxf4 {[%emt 0:00:02]} Kb6 {[%emt 0:00:01]} 73. h4 {[%emt 0:00:09]} Kc6 {[%emt 0:00:00]} 74. h5 {[%emt 0:00:08]} Kd5 {[%emt 0:00:16]} 1-0

[Event "Shanghai COITCT 2019"]
[Site "Shanghai"]
[Date "2019.09.17"]
[Round "8.2"]
[White "Zairbek kyzy, Begimai"]
[Black "Kabilov, Amin"]
[Result "0-1"]
[ECO "B22"]
[WhiteElo "1989"]
[BlackElo "2199"]
[Annotator "NA"]
[PlyCount "86"]
[EventDate "2019.09.15"]
[EventType "team-tourn"]
[EventCountry "CHN"]
[SourceTitle "playchess.com"]
[Source "ChessBase"]
[SourceQuality "1"]
[TimeControl "1500+10"]

1. e4 {[%emt 0:00:00]} c5 {[%emt 0:00:00]} 2. d4 {[%emt 0:00:00]} cxd4 {[%emt 0:00:00]} 3. c3 {[%emt 0:00:00]} Nf6 {[%emt 0:00:01]} 4. e5 {[%emt 0:00:00]} Nd5 {[%emt 0:00:02]} 5. Nf3 {[%emt 0:00:00]} e6 {[%emt 0:00:04]} 6. Nxd4 {[%emt 0:00:47]} Qc7 {[%emt 0:01:39]} 7. f4 {[%emt 0:03:15]} a6 {[%emt 0:00:03]} 8. Be2 {[%emt 0:01:50]} d6 {[%emt 0:01:16]} 9. O-O {[%emt 0:02:56]} dxe5 {[%emt 0:03:31]} 10. fxe5 {[%emt 0:00:03]} Be7 {[%emt 0:00:02]} 11. Qe1 {[%emt 0:01:26]} Nd7 {[%emt 0:00:55]} 12. Bh5 {[%emt 0:04:54]} O-O {[%emt 0:01:02]} 13. Nf3 {[%emt 0:00:26]} Nc5 {[%emt 0:01:40]} 14. Qg3 {[%emt 0:00:57]} Ne4 {[%emt 0:00:15]} 15. Qe1 {[%emt 0:00:52]} Nc5 {[%emt 0:01:58]} 16. Qe2 {[%emt 0:00:41]} b5 {[%emt 0:02:48]} 17. Ng5 {[%emt 0:01:04]} g6 {[%emt 0:00:40]} 18. Bg4 {[%emt 0:00:05]} Bb7 {[%emt 0:00:47]} 19. Nf3 {[%emt 0:01:04]} Kg7 {[%emt 0:03:07]} 20. Na3 {[%emt 0:00:20]} Rad8 {[%emt 0:01:41]} 21. Nc2 {[%emt 0:00:19]} Qb6 {[%emt 0:01:20]} 22. Kh1 {[%emt 0:01:30]} a5 {[%emt 0:00:41]} 23. Ncd4 {[%emt 0:00:47]} Ba6 {[%emt 0:00:21]} 24. Qd2 {[%emt 0:00:11]} Ne4 {[%emt 0:00:15]} 25. Qh6+ {[%emt 0:00:05]} Kg8 {[%emt 0:00:01]} 26. Bg5 {[%emt 0:03:14]} Nxg5 {[%emt 0:01:35]} 27. Nxg5 {[%emt 0:00:03]} Bxg5 {[%emt 0:00:01]} 28. Qxg5 {[%emt 0:00:01]} b4 {[%emt 0:01:01]} 29. Rf3 {[%emt 0:00:02]} bxc3 {[%emt 0:00:17]} 30. bxc3 {[%emt 0:00:02]} Nxc3 {[%emt 0:00:54]} 31. Rh3 {[%emt 0:00:45]} Ne4 {[%emt 0:01:12]} 32. Qh4 {[%emt 0:00:19]} h5 {[%emt 0:00:36]} 33. Re1 {[%emt 0:02:05]} Qxd4 {[%emt 0:00:08]} 34. Rhe3 {[%emt 0:00:03]} Nc5 {[%emt 0:00:28]} 35. h3 {[%emt 0:00:27]} hxg4 {[%emt 0:00:05]} 36. hxg4 {[%emt 0:00:05]} Ne4 {[%emt 0:00:19]} 37. Rxe4 {[%emt 0:00:10]} Qd2 {[%emt 0:00:02]} 38. R4e3 {[%emt 0:00:20]} Rd3 {[%emt 0:00:02]} 39. Qg3 {[%emt 0:00:04]} Rxe3 {[%emt 0:00:01]} 40. Qxe3 {[%emt 0:00:01]} Qxe3 {[%emt 0:00:01]} 41. Rxe3 {[%emt 0:00:01]} Rb8 {[%emt 0:00:03]} 42. Ra3 {[%emt 0:00:01]} Rb5 {[%emt 0:00:02]} 43. Rc3 {[%emt 0:00:02]} Rxe5 {[%emt 0:00:02]} 0-1

[Event "Shanghai COITCT 2019"]
[Site "Shanghai"]
[Date "2019.09.17"]
[Round "8.6"]
[White "Zarubitski, Viachaslau"]
[Black "Mu, Ke"]
[Result "1/2-1/2"]
[ECO "C18"]
[WhiteElo "2435"]
[BlackElo "2414"]
[Annotator "NA"]
[PlyCount "132"]
[EventDate "2019.09.15"]
[EventType "team-tourn"]
[EventCountry "CHN"]
[SourceTitle "playchess.com"]
[Source "ChessBase"]
[SourceQuality "1"]
[TimeControl "1500+10"]

1. e4 {[%emt 0:00:00]} e6 {[%emt 0:00:00]} 2. d4 {[%emt 0:00:00]} d5 {[%emt 0:00:00]} 3. Nc3 {[%emt 0:00:00]} Bb4 {[%emt 0:00:00]} 4. e5 {[%emt 0:00:00]} c5 {[%emt 0:00:02]} 5. a3 {[%emt 0:00:00]} Bxc3+ {[%emt 0:00:03]} 6. bxc3 {[%emt 0:00:01]} Ne7 {[%emt 0:00:02]} 7. Qg4 {[%emt 0:00:02]} O-O {[%emt 0:00:02]} 8. Bd3 {[%emt 0:00:04]} f5 {[%emt 0:00:01]} 9. exf6 {[%emt 0:00:02]} Rxf6 {[%emt 0:00:02]} 10. Bg5 {[%emt 0:00:02]} Rf7 {[%emt 0:00:03]} 11. Qh5 {[%emt 0:00:00]} g6 {[%emt 0:00:12]} 12. Qd1 {[%emt 0:00:01]} Nbc6 {[%emt 0:00:18]} 13. Nf3 {[%emt 0:00:03]} Qa5 {[%emt 0:00:19]} 14. Bd2 {[%emt 0:00:02]} c4 {[%emt 0:00:02]} 15. Be2 {[%emt 0:00:04]} Nf5 {[%emt 0:00:07]} 16. h4 {[%emt 0:00:46]} Bd7 {[%emt 0:00:40]} 17. h5 {[%emt 0:00:40]} e5 {[%emt 0:01:51]} 18. hxg6 {[%emt 0:04:29]} hxg6 {[%emt 0:00:01]} 19. Nxe5 {[%emt 0:00:39]} Nxe5 {[%emt 0:00:03]} 20. dxe5 {[%emt 0:00:01]} Re8 {[%emt 0:00:26]} 21. Bf3 {[%emt 0:04:06]} Rxe5+ {[%emt 0:00:12]} 22. Kf1 {[%emt 0:00:01]} Bc6 {[%emt 0:01:20]} 23. Bf4 {[%emt 0:01:57]} Re6 {[%emt 0:03:07]} 24. Rh3 {[%emt 0:01:13]} Ng7 {[%emt 0:07:16]} 25. Qd2 {[%emt 0:02:30]} a6 {[%emt 0:03:10]} 26. Be3 {[%emt 0:02:59]} d4 {[%emt 0:02:03]} 27. Qxd4 {[%emt 0:00:24]} Bxf3 {[%emt 0:00:08]} 28. Rxf3 {[%emt 0:02:05]} Rxf3 {[%emt 0:00:17]} 29. gxf3 {[%emt 0:00:06]} Qf5 {[%emt 0:00:08]} 30. Kg2 {[%emt 0:00:31]} Qxc2 {[%emt 0:01:00]} 31. Qxc4 {[%emt 0:00:14]} b5 {[%emt 0:01:08]} 32. Qc8+ {[%emt 0:00:52]} Re8 {[%emt 0:00:01]} 33. Qc5 {[%emt 0:00:01]} Qf5 {[%emt 0:01:14]} 34. Qd4 {[%emt 0:01:24]} Ne6 {[%emt 0:00:47]} 35. Qh4 {[%emt 0:01:13]} Rf8 {[%emt 0:00:31]} 36. Qg3 {[%emt 0:00:31]} Ng7 {[%emt 0:02:41]} 37. Rd1 {[%emt 0:01:28]} Nh5 {[%emt 0:00:16]} 38. Qg4 {[%emt 0:00:01]} Nf4+ {[%emt 0:00:01]} 39. Bxf4 {[%emt 0:01:28]} Qxg4+ 40. fxg4 {[%emt 0:00:01]} Rxf4 {[%emt 0:00:02]} 41. Kg3 {[%emt 0:01:11]} Ra4 {[%emt 0:00:01]} 42. Rd6 {[%emt 0:00:29]} Kg7 {[%emt 0:00:05]} 43. Kh4 {[%emt 0:00:05]} Kh6 {[%emt 0:00:06]} 44. Rc6 {[%emt 0:00:22]} Rxa3 {[%emt 0:00:07]} 45. g5+ {[%emt 0:00:05]} Kg7 {[%emt 0:00:00]} 46. Rc7+ {[%emt 0:00:01]} Kf8 {[%emt 0:00:03]} 47. f4 {[%emt 0:00:03]} Ra4 {[%emt 0:00:04]} 48. Kg4 {[%emt 0:00:08]} Rc4 {[%emt 0:00:11]} 49. Ra7 {[%emt 0:00:10]} Rxc3 {[%emt 0:00:11]} 50. Rxa6 {[%emt 0:00:01]} Kg7 {[%emt 0:00:01]} 51. Ra7+ {[%emt 0:00:05]} Kg8 {[%emt 0:00:01]} 52. Ra8+ {[%emt 0:00:01]} Kg7 {[%emt 0:00:01]} 53. Ra7+ {[%emt 0:00:00]} Kg8 {[%emt 0:00:01]} 54. Rb7 {[%emt 0:00:01]} Rc5 {[%emt 0:00:21]} 55. Kf3 {[%emt 0:00:06]} Rf5 {[%emt 0:00:06]} 56. Ke4 {[%emt 0:00:07]} Kf8 {[%emt 0:00:01]} 57. Ra7 {[%emt 0:00:15]} Kg8 {[%emt 0:00:01]} 58. Ra8+ {[%emt 0:00:27]} Kg7 {[%emt 0:00:01]} 59. Ra7+ {[%emt 0:00:21]} Kg8 {[%emt 0:00:01]} 60. Ra6 {[%emt 0:00:01]} Kg7 {[%emt 0:00:01]} 61. Rb6 {[%emt 0:00:01]} Kf7 {[%emt 0:00:04]} 62. Rb7+ {[%emt 0:00:01]} Kf8 {[%emt 0:00:01]} 63. Ke3 {[%emt 0:00:08]} Kg8 {[%emt 0:00:04]} 64. Rb8+ {[%emt 0:00:44]} Kg7 {[%emt 0:00:00]} 65. Rb7+ {[%emt 0:00:01]} Kg8 {[%emt 0:00:01]} 66. Rc7 {[%emt 0:00:01]} Kf8 {[%emt 0:00:01]} 1/2-1/2

[Event "Shanghai COITCT 2019"]
[Site "Shanghai"]
[Date "2019.09.17"]
[Round "8.8"]
[White "Kobalia, Mikhail"]
[Black "Darini, Pouria"]
[Result "0-1"]
[ECO "B30"]
[WhiteElo "2608"]
[BlackElo "2428"]
[Annotator "RC"]
[PlyCount "94"]
[EventDate "2019.09.15"]
[EventType "team-tourn"]
[EventCountry "CHN"]
[SourceTitle "playchess.com"]
[Source "ChessBase"]
[SourceQuality "1"]
[TimeControl "1500+10"]

1. e4 {[%emt 0:00:00]} c5 {[%emt 0:00:00]} 2. Nf3 {[%emt 0:00:00]} Nc6 {[%emt 0:00:00]} 3. Bb5 {[%emt 0:00:08]} e6 {[%emt 0:00:00]} 4. O-O {[%emt 0:00:01]} Nge7 {[%emt 0:00:01]} 5. d4 {[%emt 0:00:01]} cxd4 {[%emt 0:00:08]} 6. Nxd4 {[%emt 0:00:02]} Qb6 {[%emt 0:00:05]} 7. Nxc6 {[%emt 0:00:07]} bxc6 {[%emt 0:00:06]} 8. Bd3 {[%emt 0:00:11]} Ng6 {[%emt 0:00:06]} 9. c4 {[%emt 0:00:16]} Bc5 {[%emt 0:03:42]} 10. Nc3 {[%emt 0:00:25]} Qc7 {[%emt 0:00:07]} 11. Kh1 {[%emt 0:00:43]} e5 {[%emt 0:02:39]} 12. Rb1 {[%emt 0:02:17]} Rb8 {[%emt 0:01:19]} 13. a3 {[%emt 0:00:58]} a5 {[%emt 0:03:20]} 14. Bd2 {[%emt 0:00:13]} O-O {[%emt 0:03:02]} 15. Na4 {[%emt 0:01:03]} Bd4 {[%emt 0:00:05]} 16. c5 {[%emt 0:00:14]} d5 {[%emt 0:01:40]} 17. cxd6 {[%emt 0:00:31]} Qxd6 {[%emt 0:00:01]} 18. Bc4 {[%emt 0:01:53]} Nh4 {[%emt 0:01:06]} 19. g3 {[%emt 0:01:49]} Ng6 {[%emt 0:01:28]} 20. Qe2 {[%emt 0:02:10]} Kh8 {[%emt 0:01:04]} 21. Bxa5 {[%emt 0:00:42]} f5 {[%emt 0:00:13]} 22. Rbd1 {[%emt 0:01:12]} c5 {[%emt 0:01:38]} 23. Nc3 {[%emt 0:00:42]} fxe4 {[%emt 0:01:34]} 24. Nxe4 {[%emt 0:00:38]} Qc6 {[%emt 0:00:01]} 25. b4 {[%emt 0:05:22]} Bh3 {[%emt 0:01:46]} 26. b5 {[%emt 0:00:01]} Qb7 {[%emt 0:00:30]} 27. f3 {[%emt 0:03:51]} Ra8 {[%emt 0:00:01]} 28. Bd2 {[%emt 0:00:17]} Rxa3 {[%emt 0:00:12]} 29. Ng5 {[%emt 0:00:26]} Bxf1 {[%emt 0:00:10]} 30. Rxf1 {[%emt 0:00:01]} h6 {[%emt 0:01:35]} 31. Ne4 {[%emt 0:00:17]} Ne7 {[%emt 0:00:03]} 32. Nd6 {[%emt 0:00:13]} Qa8 {[%emt 0:01:03]} 33. Nf7+ {[%emt 0:00:09]} Kh7 {[%emt 0:00:27]} 34. Bc1 {[%emt 0:00:56]} Rc3 {[%emt 0:00:18]} 35. Bd2 {[%emt 0:00:05]} Rxc4 {[%emt 0:00:30]} 36. Qxc4 {[%emt 0:00:02]} e4 {[%emt 0:00:01]} 37. b6 {[%emt 0:00:46]} Qc6 {[%emt 0:00:23]} 38. h4 {[%emt 0:01:54]} exf3 {[%emt 0:00:09]} 39. Kh2 {[%emt 0:00:00]} Qxb6 {[%emt 0:00:24]} 40. Rxf3 {[%emt 0:00:04]} Qb2 {[%emt 0:00:25]} 41. Qe2 {[%emt 0:00:51]} Kg8 {[%emt 0:00:10]} 42. Qxe7 {[%emt 0:00:05]} Qxd2+ {[%emt 0:00:02]} 43. Kh3 Bf6 {[%emt 0:00:12]} 44. Rxf6 {[%emt 0:00:25]} gxf6 {[%emt 0:00:07]} 45. Nd6 {[%emt 0:00:11]} Qd5 {[%emt 0:00:09]} 46. Qd7 {[%emt 0:00:14]} h5 {[%emt 0:00:18]} 47. Kh2 {[%emt 0:00:13]} Ra8 {[%emt 0:00:01]} 0-1

[Event "Shanghai COITCT 2019"]
[Site "Shanghai"]
[Date "2019.09.17"]
[Round "8.10"]
[White "Venkatesh, M.R."]
[Black "Lodhi, Mahmood"]
[Result "1/2-1/2"]
[ECO "C77"]
[WhiteElo "2481"]
[BlackElo "2349"]
[Annotator "ChessBase"]
[PlyCount "72"]
[EventDate "2019.09.15"]
[EventType "team-tourn"]
[EventCountry "CHN"]
[SourceTitle "playchess.com"]
[Source "ChessBase"]
[SourceQuality "1"]
[TimeControl "1500+10"]

1. e4 {[%emt 0:00:00]} e5 {[%emt 0:00:00]} 2. Nf3 {[%emt 0:00:00]} Nc6 {[%emt 0:00:00]} 3. Bb5 {[%emt 0:00:00]} a6 {[%emt 0:00:00]} 4. Ba4 {[%emt 0:00:00]} Nf6 {[%emt 0:00:00]} 5. d3 {[%emt 0:00:03]} d6 {[%emt 0:00:35]} 6. c3 {[%emt 0:00:06]} Be7 {[%emt 0:00:03]} 7. Nbd2 {[%emt 0:00:23]} O-O {[%emt 0:00:02]} 8. O-O {[%emt 0:00:07]} b5 {[%emt 0:00:01]} 9. Bc2 {[%emt 0:00:03]} Bb7 {[%emt 0:00:47]} 10. a4 {[%emt 0:00:07]} d5 {[%emt 0:00:57]} 11. Qe2 {[%emt 0:00:29]} dxe4 {[%emt 0:00:43]} 12. dxe4 {[%emt 0:00:15]} Bd6 {[%emt 0:01:44]} 13. Bd3 {[%emt 0:00:40]} Na7 {[%emt 0:00:58]} 14. b4 {[%emt 0:00:55]} c6 {[%emt 0:03:21]} 15. Nb3 {[%emt 0:00:13]} Nc8 {[%emt 0:00:18]} 16. Bg5 {[%emt 0:01:38]} h6 {[%emt 0:00:16]} 17. Bh4 {[%emt 0:00:04]} Nb6 {[%emt 0:00:10]} 18. Na5 {[%emt 0:00:03]} Rb8 {[%emt 0:00:18]} 19. axb5 {[%emt 0:00:37]} axb5 {[%emt 0:00:03]} 20. Bg3 {[%emt 0:01:39]} Qc7 {[%emt 0:01:27]} 21. Nxb7 {[%emt 0:02:53]} Rxb7 {[%emt 0:00:19]} 22. Rfc1 {[%emt 0:00:03]} Nh5 {[%emt 0:00:21]} 23. Nh4 {[%emt 0:00:44]} Nxg3 {[%emt 0:00:11]} 24. hxg3 {[%emt 0:00:01]} g6 {[%emt 0:00:32]} 25. Ra6 {[%emt 0:00:13]} Ra7 {[%emt 0:00:26]} 26. Rxa7 {[%emt 0:02:14]} Qxa7 {[%emt 0:00:32]} 27. Qd2 {[%emt 0:00:14]} Kg7 {[%emt 0:00:20]} 28. Nf3 {[%emt 0:02:22]} Rd8 {[%emt 0:03:43]} 29. Bf1 {[%emt 0:01:27]} Qa3 {[%emt 0:01:26]} 30. Rc2 {[%emt 0:00:17]} Bc7 {[%emt 0:00:27]} 31. Qe3 {[%emt 0:01:31]} Rd1 {[%emt 0:01:27]} 32. Nd2 {[%emt 0:02:33]} Qa1 {[%emt 0:00:42]} 33. Qe2 {[%emt 0:01:45]} Re1 {[%emt 0:00:32]} 34. Qd3 {[%emt 0:00:03]} Rd1 {[%emt 0:00:04]} 35. Qe2 {[%emt 0:01:11]} Re1 {[%emt 0:00:02]} 36. Qd3 {[%emt 0:00:02]} Rd1 {[%emt 0:00:01]} 1/2-1/2

[Event "Shanghai COITCT 2019"]
[Site "Shanghai"]
[Date "2019.09.17"]
[Round "8.11"]
[White "Khan, Mohd. Omer"]
[Black "Krishna C R G"]
[Result "0-1"]
[ECO "A54"]
[WhiteElo "2273"]
[BlackElo "2446"]
[Annotator "NA"]
[PlyCount "47"]
[EventDate "2019.09.15"]
[EventType "team-tourn"]
[EventCountry "CHN"]
[SourceTitle "playchess.com"]
[Source "ChessBase"]
[SourceQuality "1"]
[TimeControl "1500+10"]

1. d4 {[%emt 0:00:00]} Nf6 {[%emt 0:00:00]} 2. Nf3 {[%emt 0:00:00]} d6 {[%emt 0:00:00]} 3. c4 {[%emt 0:00:00]} Nbd7 {[%emt 0:00:00]} 4. Nc3 {[%emt 0:00:00]} e5 {[%emt 0:00:00]} 5. dxe5 {[%emt 0:00:21]} dxe5 {[%emt 0:00:01]} 6. Bg5 {[%emt 0:00:11]} Be7 {[%emt 0:00:04]} 7. e4 {[%emt 0:00:20]} O-O {[%emt 0:00:12]} 8. Be2 {[%emt 0:00:10]} c6 {[%emt 0:00:03]} 9. O-O {[%emt 0:00:07]} Qc7 {[%emt 0:00:02]} 10. h3 {[%emt 0:00:32]} Nc5 {[%emt 0:00:18]} 11. Qc2 {[%emt 0:00:18]} a5 {[%emt 0:00:03]} 12. a3 {[%emt 0:01:25]} Nh5 {[%emt 0:00:41]} 13. Be3 {[%emt 0:01:02]} f5 {[%emt 0:01:52]} 14. b4 {[%emt 0:01:38]} Nxe4 {[%emt 0:00:07]} 15. Nxe4 {[%emt 0:00:05]} fxe4 {[%emt 0:00:07]} 16. Qxe4 {[%emt 0:00:03]} Nf4 {[%emt 0:00:38]} 17. Bd2 {[%emt 0:01:10]} Bf5 {[%emt 0:02:17]} 18. Qe3 {[%emt 0:01:04]} Rad8 {[%emt 0:00:22]} 19. Bc3 {[%emt 0:00:17]} Nxe2+ {[%emt 0:00:23]} 20. Qxe2 {[%emt 0:00:04]} Bd3 {[%emt 0:00:03]} 21. Qa2 {[%emt 0:01:03]} Bxf1 {[%emt 0:00:08]} 22. Rxf1 {[%emt 0:00:32]} e4 {[%emt 0:00:35]} 23. Ne5 {[%emt 0:00:13]} Bf6 {[%emt 0:00:11]} 24. Ng4 {[%emt 0:00:11]} 0-1

[Event "Shanghai COITCT 2019"]
[Site "Shanghai"]
[Date "2019.09.17"]
[Round "8.12"]
[White "Kulkarni Bhakti"]
[Black "Waqar, Ahmad Madni"]
[Result "1-0"]
[ECO "E14"]
[WhiteElo "2429"]
[BlackElo "1979"]
[Annotator "NA"]
[PlyCount "135"]
[EventDate "2019.09.15"]
[EventType "team-tourn"]
[EventCountry "CHN"]
[SourceTitle "playchess.com"]
[Source "ChessBase"]
[SourceQuality "1"]
[TimeControl "1500+10"]

1. d4 {[%emt 0:00:00]} Nf6 {[%emt 0:00:00]} 2. Nf3 {[%emt 0:00:04]} e6 {[%emt 0:00:00]} 3. e3 {[%emt 0:00:55]} b6 {[%emt 0:00:00]} 4. Bd3 {[%emt 0:00:02]} Bb7 {[%emt 0:00:00]} 5. O-O {[%emt 0:00:03]} Be7 {[%emt 0:00:00]} 6. c4 {[%emt 0:00:03]} d5 {[%emt 0:00:04]} 7. Nc3 {[%emt 0:00:05]} O-O {[%emt 0:00:03]} 8. Qc2 {[%emt 0:00:19]} h6 {[%emt 0:00:17]} 9. b3 {[%emt 0:00:05]} Nbd7 {[%emt 0:00:04]} 10. Bb2 {[%emt 0:00:02]} Rc8 {[%emt 0:00:13]} 11. e4 {[%emt 0:00:21]} dxe4 {[%emt 0:00:16]} 12. Nxe4 {[%emt 0:00:03]} Nxe4 {[%emt 0:00:30]} 13. Bxe4 {[%emt 0:00:02]} Bxe4 {[%emt 0:00:02]} 14. Qxe4 {[%emt 0:00:02]} Nf6 {[%emt 0:00:01]} 15. Qe2 {[%emt 0:00:13]} c5 {[%emt 0:00:07]} 16. Rfd1 {[%emt 0:00:13]} cxd4 {[%emt 0:00:12]} 17. Nxd4 {[%emt 0:00:13]} Qc7 {[%emt 0:01:01]} 18. Nb5 {[%emt 0:00:23]} Qb7 {[%emt 0:00:45]} 19. Nd6 {[%emt 0:00:13]} Bxd6 {[%emt 0:00:05]} 20. Rxd6 {[%emt 0:00:02]} Rfd8 {[%emt 0:01:47] Nd6 Bxd6 Rxd6 Rfd8} 21. Rad1 {[%emt 0:00:18]} Rxd6 {[%emt 0:00:08]} 22. Rxd6 {[%emt 0:00:02]} Qe4 {[%emt 0:01:40]} 23. Qd1 {[%emt 0:02:47]} Rc5 {[%emt 0:01:38]} 24. Bd4 {[%emt 0:01:16]} Ra5 {[%emt 0:00:35]} 25. a4 {[%emt 0:01:37]} Rg5 {[%emt 0:02:05]} 26. f3 {[%emt 0:00:14]} Qg6 {[%emt 0:00:58]} 27. Rd8+ {[%emt 0:01:01]} Kh7 {[%emt 0:00:28]} 28. Qf1 {[%emt 0:00:47]} Qc2 {[%emt 0:00:59]} 29. Bxf6 {[%emt 0:00:20]} gxf6 {[%emt 0:00:08]} 30. Qd3+ {[%emt 0:00:11]} Qxd3 {[%emt 0:00:06]} 31. Rxd3 {[%emt 0:00:02]} Kg6 {[%emt 0:03:21]} 32. b4 {[%emt 0:01:10]} a5 {[%emt 0:01:08]} 33. Rd6 {[%emt 0:00:12]} axb4 {[%emt 0:01:06]} 34. Rxb6 {[%emt 0:00:02]} Ra5 {[%emt 0:00:02]} 35. Rxb4 {[%emt 0:00:03]} f5 {[%emt 0:00:42]} 36. f4 {[%emt 0:00:12]} Kf6 {[%emt 0:00:08]} 37. Kf2 {[%emt 0:00:03]} Ke7 {[%emt 0:00:04]} 38. Ke3 {[%emt 0:00:07]} Kd6 {[%emt 0:00:03]} 39. Kd4 {[%emt 0:00:03]} f6 {[%emt 0:00:08]} 40. Kc3 {[%emt 0:01:05]} e5 {[%emt 0:00:08]} 41. Rb6+ {[%emt 0:00:14]} Kc5 {[%emt 0:00:42]} 42. Rb5+ {[%emt 0:00:36]} Rxb5 {[%emt 0:00:03]} 43. axb5 {[%emt 0:00:16]} e4 {[%emt 0:00:05]} 44. g3 {[%emt 0:00:09]} h5 {[%emt 0:00:13]} 45. Kb3 {[%emt 0:00:43]} Kb6 {[%emt 0:03:38]} 46. Kb4 {[%emt 0:00:03]} Kb7 {[%emt 0:00:03]} 47. c5 {[%emt 0:00:05]} Kc7 {[%emt 0:00:04]} 48. Kc4 {[%emt 0:00:14]} Kb7 {[%emt 0:00:13]} 49. c6+ {[%emt 0:02:13]} Kc8 {[%emt 0:02:12]} 50. b6 {[%emt 0:00:11]} Kb8 {[%emt 0:00:43]} 51. c7+ {[%emt 0:01:40]} Kc8 {[%emt 0:00:16]} 52. Kd4 {[%emt 0:01:45]} Kd7 {[%emt 0:00:51]} 53. Kc3 {[%emt 0:00:58]} Kc8 {[%emt 0:00:13]} 54. Kb3 {[%emt 0:00:10]} Kd7 {[%emt 0:00:20]} 55. Kb4 {[%emt 0:00:31]} Kc8 {[%emt 0:00:05]} 56. Kc5 {[%emt 0:00:27]} Kd7 {[%emt 0:00:04]} 57. Kb5 {[%emt 0:00:24]} e3 {[%emt 0:00:24]} 58. Ka6 {[%emt 0:00:03]} e2 {[%emt 0:00:11]} 59. Kb7 {[%emt 0:00:10]} e1=Q {[%emt 0:00:27]} 60. c8=Q+ {[%emt 0:00:02]} Ke7 {[%emt 0:01:26]} 61. Qxf5 {[%emt 0:00:21]} Qh1+ {[%emt 0:00:55]} 62. Kc7 {[%emt 0:00:09]} Qc1+ {[%emt 0:00:23]} 63. Kb8 {[%emt 0:00:06]} Qd1 {[%emt 0:00:09]} 64. Qc5+ {[%emt 0:00:19]} Kd7 {[%emt 0:00:17]} 65. b7 {[%emt 0:00:18]} Ke8 {[%emt 0:00:39]} 66. Kc7 {[%emt 0:01:12]} Qd7+ {[%emt 0:00:10]} 67. Kb6 {[%emt 0:00:03]} Qd8+ {[%emt 0:00:02]} 68. Ka7 {[%emt 0:00:18]} 1-0